bitfinex/quotes_ETHUSD_20240715
["timestamp","ask_amount","ask_price","bid_price","bid_amount"]
[1721018509963,3.67084724,3340.2,3339.9,0.06369365]
[1721018510289,1.90588598,3340.1,3339.9,0.06369365]
[1721018510446,0.86890072,3340.1,3339.9,0.06369365]
[1721018512050,2.69449,3340.2,3339.9,0.06369365]
[1721018512378,1.03698484,3340.1,3339.9,0.06369365]
[1721018512579,2.69449,3340.2,3339.9,0.06369365]
[1721018512779,1.03698513,3340.1,3339.9,0.06369365]
[1721018512976,2.69449,3340.2,3339.9,0.06369365]
[1721018513203,1.80825013,3340.1,3339.9,0.06369365]
[1721018513357,0.771265,3340.1,3339.9,0.06369365]
[1721018513560,2.69449,3340.2,3339.9,0.06369365]
[1721018515063,2.3238,3340.3,3339.9,0.06369365]
[1721018515300,1.03694015,3340.2,3339.9,0.06369365]
[1721018515481,1.03694015,3340.1,3339.9,0.06369365]
[1721018515713,1.03694015,3340.2,3339.9,0.06369365]
[1721018516010,0.9392898,3340.7,3339.9,0.06369365]
[1721018516169,5.04857,3340.8,3340.0,2.69455]
[1721018516170,1.03684939,3340.6,3340.0,2.69455]
[1721018516361,1.03684939,3340.5,3340.0,2.69455]
[1721018516561,1.03684939,3340.4,3340.1,0.06371683]
[1721018516762,2.3546,3340.8,3340.3,2.69436]
[1721018516961,1.03676767,3340.7,3340.4,0.06365648]
[1721018517184,1.03676767,3340.6,3340.4,0.06365648]
[1721018517493,1.03676767,3340.5,3340.4,0.06365648]
[1721018517673,1.03676767,3340.7,3340.4,0.06365648]
[1721018517872,1.03676767,3340.6,3340.4,0.06365648]
[1721018518072,1.03676767,3340.7,3340.4,0.06365648]
[1721018518484,2.3546,3340.8,3340.4,0.06365648]
[1721018518695,1.03677044,3340.7,3340.3,2.69436]
[1721018518988,1.03677044,3340.7,3340.4,0.06365648]
[1721018521164,3.29471184,3340.8,3340.4,0.06365648]
[1721018521494,2.3546,3340.8,3340.3,2.69436]
[1721018521703,1.03677061,3340.7,3340.4,0.06365648]
[1721018521861,1.03677061,3340.6,3340.4,0.06365648]
[1721018522066,1.03677061,3340.5,3340.4,0.06365648]
[1721018523322,2.3546,3340.8,3340.4,0.06365648]
[1721018523499,2.79946767,3340.7,3340.4,0.06365648]
[1721018523817,1.03677197,3340.6,3340.4,0.06365648]
[1721018523979,1.03677197,3340.5,3340.4,0.06365648]
[1721018524302,1.47696188,3340.7,3340.4,0.06365648]
[1721018524476,1.47696188,3340.7,3340.2,2.69442]
[1721018524477,1.03677252,3340.5,3340.2,2.69442]
[1721018524810,1.03677252,3340.4,3340.3,0.06367659]
[1721018525104,1.03677252,3340.4,3340.3,2.75803659]
[1721018527715,0.94110291,3340.6,3340.3,2.75803659]
[1721018527875,1.03677096,3340.4,3340.3,2.75803659]
[1721018531197,2.26330732,3340.4,3340.3,2.75803659]
[1721018531398,6.39715339,3340.4,3340.3,0.06367659]
[1721018531706,9.09185057,3340.4,3339.8,0.1]
[1721018532003,0.94228511,3340.2,3339.9,0.06368307]
[1721018532206,0.94228511,3340.0,3339.9,0.06368307]
[1721018532413,3.20571478,3340.0,3339.9,0.06368307]
[1721018533071,2.26342967,3340.0,3339.9,0.06368307]
[1721018533307,3.20571478,3340.0,3339.9,0.06368307]
[1721018534540,3.20669746,3340.0,3339.9,0.06368307]
[1721018537946,3.20669417,3340.0,3339.9,0.06368307]
[1721018541120,3.20674276,3340.0,3339.9,0.06368307]
[1721018541440,5.88621093,3340.4,3339.9,0.06368307]
[1721018541658,0.94318368,3340.0,3339.9,0.06368307]
[1721018541956,3.20674792,3340.0,3339.9,0.06368307]
[1721018542523,2.26356424,3340.0,3339.9,0.06368307]
[1721018542924,4.50416294,3340.0,3339.9,0.06368307]
[1721018543160,3.24658469,3340.0,3339.9,0.06368307]
[1721018543822,3.24662558,3340.0,3339.9,0.06368307]
[1721018544223,4.50420383,3340.0,3339.9,0.06368307]
[1721018544426,3.24662894,3340.0,3339.9,0.06368307]
[1721018545550,3.24662455,3340.0,3339.9,0.06368307]
[1721018546058,3.20673159,3340.0,3339.9,0.06368307]
[1721018546760,3.00673159,3340.0,3339.9,0.06368307]
[1721018547165,1.22669992,3340.0,3339.9,8.81826307]
[1721018547462,0.94312749,3340.3,3340.2,2.69444]
[1721018547624,0.94312749,3340.3,3340.2,5.38888]
[1721018547829,2.16962102,3340.4,3340.3,2.69436]
[1721018548056,2.16962006,3340.4,3340.3,2.69436]
[1721018548267,2.16962006,3340.4,3340.3,2.75804012]
[1721018549230,1.22649257,3340.4,3340.3,0.06368012]
[1721018549537,1.22649257,3340.4,3340.0,2.69458]
[1721018549738,0.94304365,3340.3,3340.1,0.06372036]
[1721018550040,1.22649257,3340.2,3340.1,0.06372036]
[1721018550642,2.16953622,3340.2,3340.1,0.06372036]
[1721018550860,2.16953622,3340.2,3339.9,2.69468]
[1721018550861,0.94304365,3340.2,3339.9,2.69468]
[1721018551189,0.94304365,3340.2,3340.0,0.06364885]
[1721018551477,1.22659539,3340.1,3340.0,0.06364885]
[1721018551859,1.22659539,3340.1,3339.8,0.1]
[1721018552063,1.22659539,3340.1,3340.0,0.06364885]
[1721018552272,2.20966505,3340.1,3339.9,0.06370069]
[1721018552571,3.66667825,3340.2,3340.0,0.06368057]
[1721018552792,1.22666685,3340.1,3339.8,0.1]
[1721018552935,1.22666685,3340.1,3339.9,0.06370069]
[1721018552936,0.94321493,3340.0,3339.9,0.06370069]
[1721018553139,2.16988178,3340.0,3339.9,0.06370069]
[1721018553736,2.16987663,3340.0,3339.9,0.06370069]
[1721018554138,1.22663695,3340.0,3339.9,2.75839069]
[1721018554365,2.16985188,3340.0,3339.9,2.75839069]
[1721018556145,1.22663695,3340.0,3339.9,5.45308069]
[1721018556754,0.94321493,3340.2,3340.0,2.69461]
[1721018556959,1.22655989,3340.1,3340.0,2.69461]
[1721018557344,1.22655989,3340.1,3340.0,2.75829057]
[1721018557547,0.94321493,3340.2,3340.1,2.69453]
[1721018557877,3.20659427,3340.2,3340.1,2.75819045]
[1721018559578,2.26337934,3340.2,3340.1,2.75819045]
[1721018559896,3.20679309,3340.2,3340.1,2.75819045]
[1721018560448,3.20679309,3340.2,3340.1,2.73823045]
[1721018560700,0.94341375,3340.2,3340.1,2.73823045]
[1721018560896,3.20677769,3340.2,3340.1,2.73823045]
[1721018561049,0.94341375,3340.2,3340.1,2.73823045]
[1721018561249,1.98021452,3340.2,3340.1,2.73823045]
[1721018561498,3.20677686,3340.2,3340.1,2.73823045]
[1721018563459,2.26340435,3340.2,3340.1,2.73823045]
[1721018563850,3.20688304,3340.2,3340.1,2.73823045]
[1721018564051,3.20688049,3340.2,3340.1,2.73823045]
[1721018564892,3.20690304,3340.2,3340.1,2.73823045]
[1721018565351,2.26339922,3340.2,3340.1,2.73823045]
[1721018567321,1.25797503,3340.3,3340.1,2.73823045]
[1721018567494,2.26341532,3340.2,3340.1,2.73823045]
[1721018567827,2.26341532,3340.2,3340.1,0.06366045]
[1721018567978,2.26341532,3340.2,3340.1,2.7560131]
[1721018569299,5.02871971,3340.2,3340.1,0.0615631]
[1721018569498,7.26998712,3340.2,3340.1,0.0615631]
[1721018569699,7.26998712,3340.2,3339.6,2.69487]
[1721018569935,0.94366514,3340.0,3339.6,2.69487]
[1721018570157,1.22658771,3339.9,3339.7,0.06164359]
[1721018570422,2.17025285,3339.9,3339.7,0.06164359]
[1721018570620,2.76530439,3340.2,3339.7,0.06164359]
[1721018570824,0.94371983,3339.9,3339.7,0.06164359]
[1721018570990,1.2266693,3339.8,3339.7,0.06164359]
[1721018571190,3.5760693,3339.8,3339.7,0.06164359]
[1721018573445,3.57607999,3339.8,3339.7,0.06164359]
[1721018573738,5.55683204,3339.8,3339.7,0.06164359]
[1721018574051,5.55685224,3339.8,3339.4,2.69509]
[1721018574250,1.22669707,3339.7,3339.4,2.69509]
[1721018574599,2.3306,3339.6,3339.2,2.69523]
[1721018574806,0.94381183,3339.4,3339.2,2.69523]
[1721018575032,1.22669707,3339.3,3339.2,2.69523]
[1721018575547,1.22669707,3339.3,3339.2,2.75705004]
[1721018577241,2.2576,3339.3,3339.2,0.06182004]
[1721018577609,3.48433368,3339.3,3338.9,3.0]
[1721018577810,2.2576,3339.3,3339.0,0.05986627]
[1721018578628,0.94352573,3339.5,3339.2,2.69524]
[1721018578944,3.5238343,3339.6,3339.3,2.69517]
[1721018578945,3.20932573,3339.6,3339.3,2.69517]
[1721018579151,1.22668493,3339.5,3339.3,2.75497588]
[1721018579308,2.2658,3339.6,3339.3,2.75497588]
[1721018579709,1.22673411,3339.5,3339.3,2.75497588]
[1721018580011,3.20932573,3339.6,3339.3,2.75497588]
[1721018580350,1.22672878,3339.5,3339.4,2.69509]
[1721018580550,1.22672651,3339.5,3339.4,2.69509]
[1721018580731,1.22672651,3339.5,3339.4,2.75487575]
[1721018580947,3.20932573,3339.6,3339.4,2.75487575]
[1721018581149,1.22672121,3339.5,3339.4,2.75487575]
[1721018582865,0.94352573,3339.6,3339.5,5.39002]
[1721018583050,0.94352573,3339.9,3339.7,2.69485]
[1721018583234,1.22666527,3339.8,3339.7,2.69485]
[1721018583474,0.94352573,3339.9,3339.7,2.69485]
[1721018583747,1.22665173,3339.8,3339.7,2.69485]
[1721018584729,2.16963763,3339.8,3339.7,2.69485]
[1721018584937,1.22665173,3339.8,3339.7,2.69485]
[1721018585234,2.2543,3339.7,3339.2,2.69519]
[1721018585558,1.22665173,3339.6,3339.2,2.69519]
[1721018586246,2.2543,3339.5,3339.0,2.69535]
[1721018586451,2.2543,3339.5,3339.1,5.69528]
[1721018587949,2.2543,3339.5,3339.2,2.69524]
[1721018589549,2.2543,3339.5,3339.0,5.3907]
[1721018589854,1.22681787,3339.4,3339.1,2.69533]
[1721018590424,3.1972859,3339.5,3339.1,2.69533]
[1721018590861,1.22682056,3339.4,3339.1,2.69533]
[1721018591061,2.2543,3339.5,3339.1,2.69533]
[1721018592457,2.2543,3339.5,3339.2,0.05980841]
[1721018592664,2.70724634,3339.5,3339.2,0.05980841]
[1721018592866,2.2639,3339.3,3338.9,2.69544]
[1721018595135,2.2639,3339.3,3339.0,2.6954]
[1721018595731,2.2639,3339.3,3339.1,2.69532]
[1721018596865,2.2639,3339.3,3339.2,2.69525]
[1721018597636,2.2639,3339.3,3339.1,2.69532]
[1721018598548,2.2639,3339.3,3338.9,2.69547]
[1721018598740,2.4583,3339.1,3338.7,2.69565]
[1721018598937,2.4583,3339.1,3338.8,2.69556]
[1721018600477,2.4583,3339.1,3339.0,2.69541]
[1721018600653,2.4583,3339.1,3338.9,2.69549]
[1721018606247,2.4583,3339.1,3338.8,2.69555]
[1721018606782,2.4583,3339.1,3338.8,1.1]
[1721018606989,2.4583,3339.1,3339.0,2.69541]
[1721018607198,2.3634,3339.4,3339.3,2.69511]
[1721018607352,2.3634,3339.6,3339.3,3.79511]
[1721018607682,2.3634,3339.6,3339.5,2.69501]
[1721018607872,3.40040384,3339.6,3339.5,2.69501]
[1721018608080,3.40040384,3339.6,3339.5,2.75484439]
[1721018608748,3.4004044,3339.6,3339.5,2.75484439]
[1721018609485,2.3634,3339.6,3339.5,2.75484439]
[1721018609659,4.62716001,3339.6,3339.5,2.75484439]
[1721018612905,4.6271581,3339.6,3339.5,2.75484439]
[1721018613297,4.62715909,3339.6,3339.5,2.75484439]
[1721018613468,5.56987597,3339.6,3339.5,2.75484439]
[1721018614609,5.56987597,3339.6,3339.5,0.05983439]
[1721018614823,6.40967863,3339.6,3339.5,0.05983439]
[1721018614972,6.40967863,3339.6,3339.4,2.69503]
[1721018615171,2.26375909,3339.5,3339.4,2.69503]
[1721018615373,4.14591954,3339.6,3339.4,2.69503]
[1721018615675,2.26376592,3339.5,3339.4,2.69503]
[1721018616112,2.4504,3339.5,3339.4,2.69503]
[1721018616420,4.71416707,3339.5,3339.4,2.69503]
[1721018616780,4.71416707,3339.5,3339.3,2.69511]
[1721018616976,1.22675861,3339.4,3339.3,2.69511]
[1721018619497,3.39311688,3339.5,3339.3,2.69511]
[1721018619498,0.94271688,3339.5,3339.4,5.39018]
[1721018619800,7.33,3340.4,3339.3,1.1]
[1721018619801,0.94271688,3339.8,3339.7,2.69485]
[1721018619983,1.97959402,3339.9,3339.8,2.69477]
[1721018620179,3.20622853,3339.9,3339.8,2.69477]
[1721018620402,1.22663451,3339.9,3339.8,2.6686224]
[1721018620789,1.22663451,3339.9,3339.8,2.72827828]
[1721018621418,2.2752,3340.0,3339.9,2.69469]
[1721018621731,2.2752,3340.2,3340.1,5.38906]
[1721018621929,1.88736974,3341.0,3340.1,5.38906]
[1721018621930,3.21791688,3340.6,3340.5,5.3884]
[1721018622226,0.94271688,3340.8,3340.6,5.38824]
[1721018622392,3.24031688,3340.9,3340.8,2.69396]
[1721018622794,3.24031688,3340.9,3340.8,2.75330894]
[1721018623406,2.2976,3340.9,3340.8,2.75330894]
[1721018626338,2.2976,3340.9,3340.8,5.44726894]
[1721018630436,2.2976,3340.9,3340.8,0.05934894]
[1721018630623,2.52736,3340.9,3340.8,0.05934894]
[1721018630804,2.52736,3340.9,3340.5,5.6942]
[1721018631007,2.2976,3340.9,3340.8,0.05914784]
[1721018631639,2.2976,3340.9,3340.6,2.69409]
[1721018631841,2.2976,3340.9,3340.8,0.05914784]
[1721018632234,2.2976,3340.9,3340.6,2.69409]
[1721018632442,2.2976,3340.9,3340.7,0.05916795]
[1721018632655,2.52736,3340.9,3340.5,3.0]
[1721018632820,2.52736,3340.9,3340.6,0.05918807]
[1721018634351,2.2976,3340.9,3340.6,0.05918807]
[1721018635458,2.2976,3340.9,3340.6,2.75330807]
[1721018641369,2.2976,3340.9,3340.7,2.69404]
[1721018641764,2.2976,3340.9,3340.8,6.54700961]
[1721018641979,2.4545,3341.7,3341.0,2.69376]
[1721018642128,2.3931,3341.5,3341.0,2.69376]
[1721018642327,2.3931,3341.5,3341.1,0.05902927]
[1721018644270,2.3931,3341.5,3341.1,2.69371]
[1721018644570,2.3931,3341.5,3341.2,2.75263917]
[1721018644868,2.3931,3341.5,3341.2,3.85263917]
[1721018645072,2.3931,3341.5,3341.3,2.69356]
[1721018645272,2.3931,3341.5,3341.4,2.75237862]
[1721018645569,2.3931,3341.5,3341.4,3.85237862]
[1721018646467,2.3931,3341.5,3341.4,2.75237862]
[1721018646769,2.3931,3341.5,3341.4,0.05889862]
[1721018647516,2.3931,3341.5,3341.2,2.69364]
[1721018647821,2.3931,3341.5,3341.4,0.05874535]
[1721018647979,2.3931,3341.5,3341.3,0.05876546]
[1721018648175,2.3931,3341.5,3341.4,0.05874535]
[1721018648621,2.3931,3341.5,3341.3,2.69352]
[1721018648826,2.3931,3341.5,3341.4,0.05874535]
[1721018653742,3.42955029,3341.5,3341.4,0.05874535]
[1721018653953,1.65620345,3341.5,3340.8,2.69395]
[1721018654167,2.3383,3341.3,3340.9,3.0]
[1721018654527,1.03653589,3341.2,3340.8,2.69395]
[1721018654727,2.3383,3341.3,3340.8,2.69395]
[1721018654992,2.3383,3341.1,3340.8,2.69395]
[1721018656633,2.3383,3341.1,3340.9,2.69387]
[1721018657027,2.3383,3341.1,3340.8,2.69395]
[1721018657842,2.3383,3341.1,3340.8,3.79395]
[1721018658882,2.3383,3341.1,3340.9,2.69385]
[1721018659262,2.3383,3341.1,3341.0,3.7938]
[1721018662184,2.3383,3341.1,3341.0,2.6938]
[1721018662877,2.3383,3341.1,3340.8,1.1]
[1721018663081,2.3088,3341.5,3341.0,3.7938]
[1721018663250,1.03644427,3341.4,3341.3,1.1]
[1721018663451,1.03644427,3341.4,3341.2,2.69363]
[1721018663703,2.3088,3341.5,3341.2,2.69363]
[1721018663906,1.03641776,3341.4,3341.2,2.69363]
[1721018664204,2.3088,3341.5,3341.2,2.69363]
[1721018664413,1.03642512,3341.4,3341.2,2.69363]
[1721018664575,2.3088,3341.5,3341.4,2.69348]
[1721018664772,3.34522591,3341.5,3341.4,2.69348]
[1721018665387,4.28541002,3341.5,3341.4,2.69348]
[1721018666300,4.28541002,3341.5,3341.4,2.75210346]
[1721018666499,3.34522591,3341.5,3341.4,2.75210346]
[1721018667389,4.59880472,3341.5,3341.4,2.75210346]
[1721018667986,4.60201066,3341.5,3341.4,2.75210346]
[1721018669992,4.60201066,3341.5,3341.4,0.05862346]
[1721018670220,3.96252419,3341.5,3341.2,2.69363]
[1721018670426,4.182983,3341.5,3341.4,0.05862346]
[1721018670584,5.21941123,3341.5,3341.3,0.05864357]
[1721018670790,5.21941123,3341.5,3341.2,2.69363]
[1721018670791,1.97912065,3341.4,3341.2,2.69363]
[1721018670988,1.97912065,3341.3,3341.2,2.69364]
[1721018671219,0.94269242,3341.3,3341.2,2.69364]
[1721018671428,1.97917763,3341.3,3341.2,2.69364]
[1721018671629,0.942719,3341.3,3341.2,2.69364]
[1721018671823,1.97918773,3341.3,3341.2,2.69364]
[1721018672343,1.97918773,3341.3,3340.9,1.1]
[1721018672488,0.942719,3341.1,3340.7,1.1]
[1721018672692,3.255119,3341.2,3340.7,4.1]
[1721018673041,1.97924607,3341.1,3340.8,2.69391]
[1721018673202,1.03652707,3341.0,3340.8,2.69391]
[1721018673413,0.942719,3341.1,3340.8,2.69391]
[1721018674011,3.255119,3341.2,3340.8,2.69391]
[1721018674213,1.03652516,3341.1,3340.9,2.69385]
[1721018674507,0.942719,3341.1,3340.9,3.79385]
[1721018674824,3.255119,3341.2,3340.9,3.79385]
[1721018675011,1.97924749,3341.1,3340.9,3.79385]
[1721018675212,0.942719,3341.1,3340.9,3.79385]
[1721018675743,3.255119,3341.2,3340.9,3.79385]
[1721018675949,1.97924655,3341.1,3340.9,3.79385]
[1721018676309,0.942719,3341.1,3340.9,3.79385]
[1721018676652,0.942719,3341.1,3340.7,6.79398]
[1721018677376,3.33987896,3341.0,3340.7,3.0]
[1721018677707,2.3033,3341.0,3340.7,3.0]
[1721018678787,3.246019,3341.0,3340.7,3.0]
[1721018678937,2.3033,3341.0,3340.7,3.0]
[1721018679388,3.246019,3341.0,3340.7,3.0]
[1721018679689,2.3033,3341.0,3340.7,3.0]
[1721018679844,2.3033,3341.0,3340.7,4.1]
[1721018681146,3.246019,3341.0,3340.7,4.1]
[1721018681354,3.24646592,3341.0,3340.7,4.1]
[1721018681554,2.3033,3341.0,3340.7,4.1]
[1721018682070,1.22634288,3340.9,3340.7,4.1]
[1721018682266,1.22634288,3340.9,3340.8,0.05868411]
[1721018682589,2.26291934,3340.9,3340.8,0.05868411]
[1721018682762,1.22634288,3340.9,3340.8,0.05868411]
[1721018684464,1.22632934,3340.9,3340.8,0.05868411]
[1721018684669,2.26293247,3340.9,3340.8,0.05868411]
[1721018684865,1.22635311,3340.9,3340.8,0.05868411]
[1721018685064,3.20614369,3340.9,3340.8,0.05868411]
[1721018685297,1.22635311,3340.9,3340.8,0.05868411]
[1721018685595,0.94321075,3341.1,3340.8,2.75264411]
[1721018685804,1.22628313,3341.0,3340.9,1.1]
[1721018686106,2.26279798,3341.0,3340.9,1.1]
[1721018686272,1.22628313,3341.0,3340.9,1.15865079]
[1721018687753,1.22628877,3341.0,3340.9,1.15865079]
[1721018688299,1.22628877,3341.0,3340.9,3.85253079]
[1721018689310,1.22628877,3341.0,3340.9,2.75253079]
[1721018691193,1.22628403,3341.0,3340.9,2.75253079]
[1721018691410,1.22628403,3341.0,3340.9,3.85253079]
[1721018691609,0.9435828,3341.1,3341.0,2.6938]
[1721018691899,3.20636976,3341.1,3341.0,2.6938]
[1721018692067,3.20636976,3341.1,3341.0,2.75238741]
[1721018692701,1.22628229,3341.1,3341.0,5.44618741]
[1721018693066,1.22628229,3341.1,3341.0,2.75238741]
[1721018693263,0.9435828,3341.3,3341.1,2.69372]
[1721018693264,0.94363503,3341.2,3341.1,2.69372]
[1721018693465,3.20636152,3341.2,3341.1,2.69372]
[1721018693666,2.26272649,3341.2,3341.1,2.7522873]
[1721018693871,2.26274429,3341.2,3341.1,2.7522873]
[1721018694363,2.2877,3341.2,3341.1,2.7522873]
[1721018694595,4.55046454,3341.2,3341.1,2.7522873]
[1721018695101,4.55046454,3341.2,3341.1,0.0585673]
[1721018695272,5.51610375,3341.2,3340.9,2.69383]
[1721018695472,3.20651332,3341.1,3341.0,0.05660841]
[1721018696909,3.20651332,3341.1,3341.0,2.75040841]
[1721018697071,2.1700203,3341.1,3341.0,2.75040841]
[1721018697276,1.22627152,3341.1,3341.0,2.75040841]
[1721018697819,1.22622596,3341.1,3341.0,2.75040841]
[1721018699112,2.16997474,3341.1,3341.0,2.75040841]
[1721018700808,2.2877,3341.2,3341.1,2.69372]
[1721018701011,4.55041329,3341.2,3341.1,2.69372]
[1721018701214,2.2877,3341.2,3341.1,2.75024517]
[1721018701486,4.55041276,3341.2,3341.1,2.75024517]
[1721018702413,0.94383929,3341.4,3341.3,5.38712]
[1721018702573,2.16998388,3341.4,3341.3,6.48712]
[1721018702879,2.16998388,3341.4,3341.3,6.54356282]
[1721018703486,3.28103929,3341.5,3341.3,6.54356282]
[1721018703700,3.28103929,3341.5,3341.4,2.69348]
[1721018703929,4.50716491,3341.5,3341.4,2.69348]
[1721018704098,4.50687885,3341.5,3341.4,2.74990271]
[1721018704301,4.50687885,3341.5,3341.4,5.44338271]
[1721018705290,4.50687885,3341.5,3341.4,2.74990271]
[1721018705936,5.85773422,3341.5,3341.4,2.74990271]
[1721018706438,5.85773422,3341.5,3341.4,2.69348]
[1721018706795,5.85773422,3341.5,3341.4,2.74979025]
[1721018706996,5.85759291,3341.5,3341.4,2.74979025]
[1721018707416,9.29398311,3341.5,3341.4,0.05631025]
[1721018707603,9.29398311,3341.5,3340.8,2.69391]
[1721018707604,2.4488,3341.4,3340.8,2.69391]
[1721018707926,0.94342237,3341.1,3340.9,0.05641079]
[1721018708123,1.22620819,3341.0,3340.9,0.05641079]
[1721018708325,1.22620819,3341.0,3340.9,2.75029079]
[1721018709713,1.22620819,3341.0,3340.9,5.44417079]
[1721018710302,1.22627899,3341.0,3340.9,5.44417079]
[1721018711012,1.22627899,3341.0,3340.9,2.75029079]
[1721018711309,3.67267899,3341.0,3340.9,0.05641079]
[1721018713222,2.4464,3341.0,3340.9,0.05641079]
[1721018713423,3.67267907,3341.0,3340.9,0.05641079]
[1721018713639,3.67267907,3341.0,3340.9,2.75029079]
[1721018713945,0.94343163,3341.1,3341.0,2.6938]
[1721018714113,0.94343163,3341.1,3341.0,3.7938]
[1721018714301,1.22627697,3341.1,3341.0,6.54220687]
[1721018714506,0.94343163,3341.4,3341.0,6.84836687]
[1721018714704,2.4261,3341.8,3341.7,2.69323]
[1721018714904,3.65214419,3341.8,3341.7,3.79323]
[1721018715131,3.65214419,3341.8,3341.7,3.84762393]
[1721018715316,3.36932612,3341.8,3341.7,3.84762393]
[1721018715521,0.94322612,3341.9,3341.8,2.69315]
[1721018715723,2.16926411,3341.9,3341.8,2.74575798]
[1721018716539,1.22603799,3341.9,3341.8,2.74575798]
[1721018716723,0.94322612,3342.0,3341.9,2.69307]
[1721018716923,2.16926199,3342.0,3341.9,2.69307]
[1721018717128,3.36932612,3342.1,3342.0,2.69299]
[1721018717344,4.59528864,3342.1,3342.0,2.74555778]
[1721018717516,3.65206252,3342.1,3342.0,2.74555778]
[1721018718333,4.59528864,3342.1,3342.0,2.74555778]
[1721018718548,4.59528864,3342.1,3342.0,0.05256778]
[1721018718549,5.22958483,3342.1,3342.0,0.05256778]
[1721018718717,5.22958483,3342.1,3341.1,3.0]
[1721018718718,2.4681,3341.7,3340.8,10.04395]
[1721018718932,3.41039786,3341.3,3340.9,0.04907456]
[1721018719129,1.22596252,3341.2,3340.9,0.04907456]
[1721018720023,3.41039786,3341.3,3340.9,0.04907456]
[1721018720220,2.16859342,3341.2,3340.9,0.04907456]
[1721018720426,0.94229786,3341.2,3340.9,0.04907456]
[1721018720654,0.94229786,3341.2,3340.8,2.69395]
[1721018720853,0.94229786,3341.2,3341.0,0.0441327]
[1721018721055,4.55402493,3341.1,3340.9,0.04415281]
[1721018721358,4.55402493,3341.1,3340.5,2.6942]
[1721018721359,2.16871501,3341.0,3340.5,2.6942]
[1721018721524,2.16871501,3340.9,3340.5,2.6942]
[1721018721726,0.94241415,3340.9,3340.5,2.6942]
[1721018722596,0.94241415,3341.0,3340.5,2.6942]
[1721018722768,2.16882502,3340.9,3340.5,2.6942]
[1721018722923,0.94241415,3340.9,3340.5,2.6942]
[1721018723346,0.94241415,3341.0,3340.7,2.69401]
[1721018723754,0.94236208,3341.0,3340.7,2.69401]
[1721018723984,3.23356208,3341.1,3340.7,2.69401]
[1721018726461,3.23348982,3341.1,3340.7,2.69401]
[1721018727351,3.23348982,3341.1,3340.8,0.04433568]
[1721018732056,3.23348982,3341.1,3340.2,3.0]
[1721018732256,4.10887255,3341.1,3340.9,0.04447833]
[1721018732483,3.23348982,3341.1,3340.9,0.04447833]
[1721018732790,3.23348982,3341.1,3341.0,0.04298037]
[1721018733004,4.45974843,3341.1,3340.6,2.69407]
[1721018733203,3.23333818,3341.1,3341.0,0.04298037]
[1721018733358,3.23333818,3341.1,3340.6,2.69407]
[1721018733556,3.23333007,3341.1,3340.7,0.0430407]
[1721018734998,3.23333007,3341.1,3340.7,2.7370807]
[1721018737865,3.23333007,3341.1,3340.8,2.69395]
[1721018738058,3.23333007,3341.1,3340.8,2.73696884]
[1721018738680,3.23333007,3341.1,3340.9,2.69388]
[1721018738911,0.94213007,3341.2,3340.9,2.69388]
[1721018739229,0.94213007,3341.2,3341.0,0.04297861]
[1721018739379,0.94213007,3341.3,3341.0,0.04297861]
[1721018740221,0.94213007,3341.3,3341.0,2.73676861]
[1721018740421,1.2262648,3341.2,3341.0,2.73676861]
[1721018740619,0.94213007,3341.3,3341.1,2.69372]
[1721018740881,1.2262664,3341.2,3341.1,2.7366785]
[1721018742951,1.2262664,3341.2,3341.1,0.0429585]
[1721018743232,5.10936648,3341.2,3340.7,2.69402]
[1721018743441,2.16844269,3341.1,3340.7,2.69402]
[1721018743597,1.22632193,3341.0,3340.7,2.69402]
[1721018744422,2.16844269,3341.0,3340.7,2.69402]
[1721018744731,0.94212076,3341.0,3340.7,2.69402]
[1721018748035,0.94212076,3341.1,3340.7,2.69402]
[1721018748208,3.20352076,3341.2,3340.8,1.099]
[1721018748535,1.97864703,3341.1,3340.8,1.099]
[1721018748736,1.03652627,3341.0,3340.8,1.099]
[1721018749407,1.97864703,3341.0,3340.7,2.69402]
[1721018749607,1.03658583,3340.9,3340.7,2.69402]
[1721018749910,1.03658583,3340.8,3340.7,2.69402]
[1721018750219,1.03658583,3340.8,3340.6,1.099]
[1721018750420,2.4003,3340.9,3340.6,1.099]
[1721018750637,1.03658355,3340.8,3340.6,1.099]
[1721018750944,2.4003,3340.9,3340.6,1.099]
[1721018751108,1.03658385,3340.8,3340.6,1.099]
[1721018751308,2.4003,3340.9,3340.5,2.69414]
[1721018751535,1.03659521,3340.8,3340.6,1.099]
[1721018751851,2.4003,3340.9,3340.6,1.099]
[1721018752021,1.03657597,3340.8,3340.6,1.099]
[1721018752209,2.4003,3340.9,3340.6,1.099]
[1721018752550,1.03657938,3340.8,3340.6,1.099]
[1721018753050,2.4003,3340.9,3340.6,1.099]
[1721018753444,1.03658437,3340.8,3340.6,1.099]
[1721018753656,2.4003,3340.9,3340.6,1.099]
[1721018753835,1.03660009,3340.8,3340.6,1.099]
[1721018754044,2.4003,3340.9,3340.6,3.79312]
[1721018754261,1.03659691,3340.8,3340.6,3.79312]
[1721018754441,2.4003,3340.9,3340.6,3.79312]
[1721018754629,1.03659627,3340.8,3340.6,3.79312]
[1721018754961,2.4003,3340.9,3340.6,3.79312]
[1721018755165,1.0365964,3340.8,3340.7,2.69398]
[1721018755340,2.4003,3340.9,3340.8,1.099]
[1721018755674,3.43684785,3340.9,3340.8,1.099]
[1721018755840,3.43684785,3340.9,3340.8,3.79296]
[1721018756041,2.4003,3340.9,3340.6,3.79307]
[1721018756230,1.03658218,3340.8,3340.6,3.79307]
[1721018756439,2.4003,3340.9,3340.7,2.69404]
[1721018756644,1.03658117,3340.8,3340.7,2.69404]
[1721018757246,1.03658117,3340.8,3340.7,2.73695553]
[1721018758355,1.66470627,3340.8,3340.7,2.73695553]
[1721018758690,1.03658117,3340.8,3340.7,2.73695553]
[1721018759467,3.0284251,3340.9,3340.7,2.73695553]
[1721018759680,1.03656734,3340.8,3340.7,2.73695553]
[1721018761144,1.66469244,3340.8,3340.7,2.73695553]
[1721018761990,2.4003,3340.9,3340.7,2.73695553]
[1721018762177,1.66484325,3340.8,3340.7,2.73695553]
[1721018762374,0.62827371,3340.8,3340.7,2.73695553]
[1721018762565,1.03656833,3340.8,3340.7,2.73695553]
[1721018763805,0.62879923,3340.8,3340.7,2.73695553]
[1721018764014,0.6287991,3340.8,3340.7,2.73695553]
[1721018765571,2.4003,3340.9,3340.8,2.69396]
[1721018765903,2.4003,3340.9,3340.8,2.73680491]
[1721018767379,3.65904214,3340.9,3340.8,2.73680491]